{"text_format":"3","workbook":"xlsx","n_sheets":1,"sheets":["PRICING SCHEDULE"],"not_rendered":{"images":1,"defined_names":2},"read":"whole","date_system":"1900"}

{"sheet":"PRICING SCHEDULE","index":0,"n_rows":47,"n_cols":15,"rows_kept":47,"merged":[[12,3,12,5],[12,6,12,8],[12,9,12,11],[43,1,46,1],[43,3,43,4],[45,3,45,4],[46,3,46,4]]}
[null,"SUPPLY CHAIN MANAGEMENT"]
[null,"Pricing schedule"]
["RFB No","RFB 2746-2023"]
["RFB Title","Procurement of catering refreshment consumable supplier for a period of (3) three years to supply and deliver to SITA Gauteng buildings"]
["Bidder Name "]
[]
["1. INSTRUCTION FOR COMPLETING THE PRICING SCHEDULE"]
[]
["(a)  Bidder must complete/enter YELLOW cells only"]
["(b)  Unit and Line prices must be VAT EXCLUSIVE and in South African Rand (ZAR) currency."]
["(c) The price must include all cost to deliver the goods or render the service, including all applicable taxes, duty fees, logistics/delivery, maintenance and pest control "]
[]
[{"$nulls":3},"YEAR 1",null,null,"YEAR 2",null,null,"YEAR 3",null,null,"TOTAL"]
["Item No","Description","Unit of measure","Qty ","Unit Price \n(Excl VAT)","Line Price Y1","Qty","Unit Price \n(Excl VAT)","Line Price Y2","Qty","Unit Price \n(Excl VAT)","Line Price Y3","Line Price Term \n(Excl VAT)","BRAND / MODEL","Price clarification comment"]
[1,"Sugar White Normal 2.5kg -Huletts or similar quality","2.5kg",{"v":800,"d":"800 "},null,{"$f":"D15*E15","v":0},{"v":800,"d":"800 "},null,{"$f":"G15*H15","v":0},{"v":800,"d":"800 "},null,{"$f":"J15*K15","v":0},{"$f":"SUM(F15,I15,L15)","v":0}]
[2,"Sugar White sachets - 6g each-Huletts or similar quality","2000 sachets per box = 12kg/box",{"v":30,"d":"30 "},0,0,{"v":30,"d":"30 "},0,0,{"v":30,"d":"30 "},0,0,0]
[3,"Black tea Teabags-Five Roses/Joko or similar or better quality","80 teabags per pct",{"v":960,"d":"960 "},0,0,{"v":960,"d":"960 "},0,0,{"v":960,"d":"960 "},0,0,0]
[4,"Black tea individually sealed envelopes-Five Roses/Joko or similar or better quality","200 sachets per box",{"v":50,"d":"50 "},0,0,{"v":50,"d":"50 "},0,0,{"v":50,"d":"50 "},0,0,0]
[5,"Brown Sugar 1kg-Huletts or similar quality","1kg",{"v":2000,"d":"2,000 "},0,0,{"v":2000,"d":"2,000 "},0,0,{"v":2000,"d":"2,000 "},0,0,0]
[6,"Brown Sugar sachets - 6g each-Huletts or similar quality","2000 sachets per box = 12kg/box",{"v":20,"d":"20 "},0,0,{"v":20,"d":"20 "},0,0,{"v":20,"d":"20 "},0,0,0]
[7,"Instant Coffee granules-Ricoffy/ Nescafe classic or similar or better quality","1kg tins",{"v":360,"d":"360 "},0,0,{"v":360,"d":"360 "},0,0,{"v":360,"d":"360 "},0,0,0]
[8,"Instant Coffee granules sachets-Ricoffy/ Nescafe classic or similar or better quality","200 per box",{"v":50,"d":"50 "},0,0,{"v":50,"d":"50 "},0,0,{"v":50,"d":"50 "},0,0,0]
[9,"Rooibos tea-Five Roses or similar or better quality","100-102 bags per pct",{"v":1400,"d":"1,400 "},0,0,{"v":1400,"d":"1,400 "},0,0,{"v":1400,"d":"1,400 "},0,0,0]
[10,"Rooibos tea individualy sealed envelopes -Five Roses or similar or better quality","200 ea per box",{"v":80,"d":"80 "},0,0,{"v":80,"d":"80 "},0,0,{"v":80,"d":"80 "},0,0,0]
[11,"Artificial sweetner sachets-Canderelle or similar or better quality(aspartane free)","Bx of 1000 sachets",{"v":120,"d":"120 "},0,0,{"v":120,"d":"120 "},0,0,{"v":120,"d":"120 "},0,0,0]
[12,"Stirrers stick-white plastic","1000 per pkt",{"v":50,"d":"50 "},0,0,{"v":50,"d":"50 "},0,0,{"v":50,"d":"50 "},0,0,0]
[13,"Paper disposable cups(175ml) - paper","1000 per box",{"v":24,"d":"24 "},0,0,{"v":24,"d":"24 "},0,0,{"v":24,"d":"24 "},0,0,0]
[14,"Disposable cups (250ml) -polysterene","1000 per box",{"v":40,"d":"40 "},0,{"$f":"D28*E28","v":0},{"v":40,"d":"40 "},0,{"$f":"G28*H28","v":0},{"v":40,"d":"40 "},0,{"$f":"J28*K28","v":0},{"$f":"SUM(F28,I28,L28)","v":0}]
[15,"Coffee creamer 1kg-Cremora/Ellis Brown or similar or better quality","1kg bx/bag",{"v":2500,"d":"2,500 "},0,0,{"v":2500,"d":"2,500 "},0,0,{"v":2500,"d":"2,500 "},0,0,0]
[16,"Coffee creamer individual sachets-Cremora/Ellis Brown or similar or better quality ","200 per box",{"v":80,"d":"80 "},0,0,{"v":80,"d":"80 "},0,0,{"v":80,"d":"80 "},0,0,0]
[17,"Mineral water - Still 500ml-Valpre or similar or better quality","each",{"v":1000,"d":"1,000 "},0,0,{"v":1000,"d":"1,000 "},0,0,{"v":1000,"d":"1,000 "},0,0,0]
[18,"Mineral water - Sparkling 500ml-Valpre or similar or better quality","each",{"v":400,"d":"400 "},0,0,{"v":400,"d":"400 "},0,0,{"v":400,"d":"400 "},0,0,0]
[19,"Mineral water - Still 10lt-Valpre or similar or better quality","each",{"v":24,"d":"24 "},0,0,{"v":24,"d":"24 "},0,0,{"v":24,"d":"24 "},0,0,0]
[20,"Long life milk - Full cream","1lt",{"v":720,"d":"720 "},0,0,{"v":720,"d":"720 "},0,0,{"v":720,"d":"720 "},0,0,0]
[21,"Long life milk - Low fat","1lt",{"v":160,"d":"160 "},0,0,{"v":160,"d":"160 "},0,0,{"v":160,"d":"160 "},0,0,0]
[22,"Disposable Filters for coffee machines-250x90mm","1000per box",{"v":2,"d":"2 "},0,0,{"v":2,"d":"2 "},0,0,{"v":2,"d":"2 "},0,0,0]
[23,"Filter coffee - grounded-Ciro or similar or better quality","1 box (80x 80g pcts)",{"v":6,"d":"6 "},0,0,{"v":6,"d":"6 "},0,0,{"v":6,"d":"6 "},0,0,0]
[24,"Supply & maintain 2 x cofee filter machines to be installed at SITA Erasmuskloof Executive level and( free of charge) ","each",{"v":2,"d":"2 "},null,null,{"v":2,"d":"2 "},null,null,{"v":2,"d":"2 "}]
[null,"TOTAL BID PRICE  (EXCL VAT)",{"$nulls":3},{"$f":"SUBTOTAL(9,F27:F37)","v":0},null,null,{"$f":"SUBTOTAL(9,I27:I37)","v":0},null,null,{"$f":"SUBTOTAL(9,L27:L37)","v":0},{"$f":"SUBTOTAL(9,M27:M37)","v":0}]
[null,"VAT (@15%)",{"$nulls":3},{"$f":"F39*0.15","v":0},null,null,{"$f":"I39*0.15","v":0},null,null,{"$f":"L39*0.15","v":0},{"$f":"M39*0.15","v":0}]
[null,"TOTAL  BID PRICE (INCL VAT)",{"$nulls":3},{"$f":"F39+F40","v":0},null,null,{"$f":"I39+I40","v":0},null,null,{"$f":"L39+L40","v":0},{"$f":"M39+M40","v":0}]
[]
[]
[null,"I, the bidder, confirm that the price(s) and rate(s) quoted cover all the goods and/or works specified in the bidding documents; that the price(s) or rate(s) cover all my obligations and I accept that any mistakes regarding price(s), rate(s) or calculations will be at my own risk.\n[Note: First convert to PDF, then add signature]"]
[null,null,"Name","Capacity"]
[]
[null,null,"Signature (above)","Date"]